Workbook

Sheet Summary
A1: Rolling 12-Kalispell Lofts
B2: 2024-12-01 | C2: 2025-01-01 | D2: 2025-02-01 | E2: 2025-03-01 | F2: 2025-04-01 | G2: 2025-05-01 | H2: 2025-06-01 | I2: 2025-07-01 | J2: 2025-08-25 | K2: 2025-09-25 | L2: 2025-10-25 | M2: 2025-11-25 | N2: 2025-12-25 | O2: Average/month | R2: Buyer Pro-Forma
A3: Total Rental Income | B3: =December!E1 -> 64484.89 | C3: =Jan!E3 -> 67032.19 | D3: =Feb!E1 -> 58105.35 | E3: =March!E1 -> 70203.58 | F3: =Apr!E1 -> 64789.91 | G3: =May!E3 -> 72102.84 | H3: =June!E3 -> 69292.27 | I3: =July!E3 -> 79980.36 | J3: =August!E3 -> 77286.17 | K3: =September!E3 -> 82034.37 | L3: =October!E3 -> 74667.46 | M3: =November!E3 -> 68710.77 | N3: 75790.61 | O3: =AVERAGE(C3:N4) -> 71666.32333 | R3: Income | S3: T3 | T3: T6 | U3: T12
R4: Rents + Other Income | S4: =C45*12 -> 876675.36 | T4: =C37*12 -> 916939.48 | U4: =C29*12 -> 859995.88
A5: Expenses
A6: Internet | B6: 890 | C6: 860 | D6: 830 | E6: 770 | F6: 890 | G6: 950 | H6: 980 | I6: 950 | J6: 920 | K6: 1324 | L6: 980 | M6: 1010 | N6: 1010 | O6: =AVERAGE(C6:N6) -> 956.1666667 | R6: Total Income | S6: =SUM(S4:S6) -> 876675.36 | T6: =SUM(T4:T6) -> 916939.48 | U6: =SUM(U4:U6) -> 859995.88
A7: Electricity | B7: 3330 | C7: 3845 | D7: 4457 | E7: 3832 | F7: 2829 | G7: 2727 | H7: 1869 | I7: 1991 | J7: 2105 | K7: 2227 | L7: 2085 | M7: 2495 | N7: 3653 | O7: =AVERAGE(C7:N7) -> 2842.916667 | R7: Occupancy | S7: =T55 -> 0.9777777778 | T7: =S55 -> 0.9851851852 | U7: =R55 -> 0.9111111111
A8: Garbage | B8: 628.85 | C8: 628.85 | D8: 628.85 | E8: 628.85 | F8: 628.85 | G8: 628.85 | H8: 628.85 | I8: 628.85 | J8: 628.85 | K8: 628.85 | L8: 628.85 | M8: 790.88 | N8: 599.45 | O8: 639.9025 | R8: Gross Income | S8: =S6 -> 876675.36 | T8: =T6 -> 916939.48 | U8: =U6 -> 859995.88
A9: Water | B9: 1093.795 | C9: 1093.795 | D9: 1094.03 | E9: 948.88 | F9: 939.01 | G9: 972.1 | H9: 1130.34 | I9: 1400.53 | J9: 1393.2 | K9: 1346.15 | L9: 1409.48 | M9: 1723.8 | N9: 1502.34 | O9: 1246.137917 | R9: Expenses
A10: Prop Management | B10: 5945.15 | C10: 4842.53 | D10: 6250 | E10: 6250 | F10: 6250 | G10: 6250 | H10: 5600 | I10: 6250 | J10: 6250 | K10: 6250 | L10: 4727.27 | M10: 4076.09 | N10: 5833.33 | O10: 5735.768333 | R10: Operating Expenses | S10: =C46*12 -> 155697.8 | T10: =C38*12 -> 159158.845 | U10: =C30*12 -> 166420.2925
A11: Insurance | B11: 1151.911667 | C11: 1151.911667 | D11: 1151.911667 | E11: 1151.911667 | F11: 1151.911667 | G11: 1151.911667 | H11: 1151.911667 | I11: 1151.911667 | J11: 1151.911667 | K11: 1151.911667 | L11: 1151.911667 | M11: 1151.911667 | N11: 1151.91 | O11: 1151.911528 | R11: Property Tax Adjustment | S11: =S25*12 -> 51497.64 | T11: =S11 -> 51497.64 | U11: =T11 -> 51497.64
A12: Marketing (normalized) | B12: =worksheet!$C$44 -> 94.74666667 | C12: =worksheet!$C$44 -> 94.74666667 | D12: =worksheet!$C$44 -> 94.74666667 | E12: =worksheet!$C$44 -> 94.74666667 | F12: =worksheet!$C$44 -> 94.74666667 | G12: =worksheet!$C$44 -> 94.74666667 | H12: =worksheet!$C$44 -> 94.74666667 | I12: =worksheet!$C$44 -> 94.74666667 | J12: =worksheet!$C$44 -> 94.74666667 | K12: =worksheet!$C$44 -> 94.74666667 | L12: =worksheet!$C$44 -> 94.74666667 | M12: =worksheet!$C$44 -> 94.74666667 | N12: 94.74666667 | O12: 94.74666667 | R12: Cap Ex Adjustment @ 2% | S12: =S8*0.02 -> 17533.5072 | T12: =T8*0.02 -> 18338.7896 | U12: =U8*0.02 -> 17199.9176
A13: Property Tax (normalized) | B13: 234.6683333 | C13: 234.6683333 | D13: 234.6683333 | E13: 234.6683333 | F13: 234.6683333 | G13: 234.6683333 | H13: 234.6683333 | I13: 234.6683333 | J13: 234.6683333 | K13: 234.6683333 | L13: 234.6683333 | M13: 234.6683333 | N13: 234.6683333 | O13: 234.6683333 | R13: Management Adjustment @ 3% | S13: =S8*0.03 -> 26300.2608 | T13: =T8*0.03 -> 27508.1844 | U13: =U8*0.03 -> 25799.8764
A14: Snow Plow | B14: 125 | C14: 375 | D14: 375 | E14: 3135 | F14: 0 | G14: 0 | H14: 0 | I14: 0 | J14: 0 | K14: 0 | L14: 0 | M14: 0 | N14: 0 | O14: 323.75 | R14: Total Expenses Adjusted | S14: =S10+S11+S12+S13 -> 251029.208 | T14: =T10+T11+T12+T13 -> 256503.459 | U14: =U10+U11+U12+U13 -> 260917.7265
A15: Annual Fire Inspections (normalized) | B15: =worksheet!$D$44 -> 252.5 | C15: =worksheet!$D$44 -> 252.5 | D15: =worksheet!$D$44 -> 252.5 | E15: =worksheet!$D$44 -> 252.5 | F15: =worksheet!$D$44 -> 252.5 | G15: =worksheet!$D$44 -> 252.5 | H15: =worksheet!$D$44 -> 252.5 | I15: =worksheet!$D$44 -> 252.5 | J15: =worksheet!$D$44 -> 252.5 | K15: =worksheet!$D$44 -> 252.5 | L15: =worksheet!$D$44 -> 252.5 | M15: =worksheet!$D$44 -> 252.5 | N15: 315 | O15: 257.7083333 | R15: % of Gross | S15: =S14/S8 -> 0.2863422647 | T15: =T14/T8 -> 0.279738701 | U15: =U14/U8 -> 0.3033941587
A16: Misc Expenses/supplies (normalized) | B16: =worksheet!$E$45 -> 386.6875 | C16: =worksheet!$E$45 -> 386.6875 | D16: =worksheet!$E$45 -> 386.6875 | E16: =worksheet!$E$45 -> 386.6875 | F16: =worksheet!$E$45 -> 386.6875 | G16: =worksheet!$E$45 -> 386.6875 | H16: =worksheet!$E$45 -> 386.6875 | I16: =worksheet!$E$45 -> 386.6875 | J16: =worksheet!$E$45 -> 386.6875 | K16: =worksheet!$E$45 -> 386.6875 | L16: =worksheet!$E$45 -> 386.6875 | M16: =worksheet!$E$45 -> 386.6875 | N16: 362.6066667 | O16: 384.6807639 | R16: Net Income | S16: =S8-S14 -> 625646.152 | T16: =T8-T14 -> 660436.021 | U16: =U8-U14 -> 599078.1535
A17: Total Expenses | B17: =SUM(B6:B16) -> 14133.30917 | C17: 13765.68917 | D17: 15755.39417 | E17: 17685.24417 | F17: 13657.37417 | G17: 13648.46417 | H17: 12328.70417 | I17: 13340.89417 | J17: 13417.56417 | K17: 13896.51417 | L17: =SUM(L6:L16) -> 11951.11417 | M17: =SUM(M6:M16) -> 12216.28417 | N17: =SUM(N6:N16) -> 14757.05167 | O17: 13868.35771 | R17: Cash Flow Before Taxes | S17: =S16 -> 625646.152 | T17: =T16 -> 660436.021 | U17: 599078.1535
R18: Asking Price - Cap Rate Summary
A19: Expenses W Tax Adjustment | B19: =S25+B17 -> 18424.77917 | C19: =C17+$S$25 -> 18057.15917 | D19: 20046.86417 | E19: 21976.71417 | F19: 17948.84417 | G19: 17939.93417 | H19: 16620.17417 | I19: 17632.36417 | J19: 17709.03417 | K19: 18187.98417 | L19: 16242.58417 | M19: 16507.75417 | N19: 19048.52167 | O19: =AVERAGE(B19:M19) -> 18107.84917 | R19: 10450000 | S19: =S17/R19 -> 0.05987044517 | T19: =T17/R19 -> 0.06319961923 | U19: =U17/R19 -> 0.05732805297
A21: Expense Ratio | B21: =B19/B3 -> 0.2857224253 | C21: =C19/C3 -> 0.2693804151 | D21: 0.345008922 | E21: 0.3130426421 | F21: 0.2770314724 | G21: 0.2488103682 | H21: 0.2398561076 | I21: 0.2204586747 | J21: 0.2291358747 | K21: 0.2217117553 | L21: 0.2175322981 | M21: 0.2402498788 | N21: 0.2513309147 | O21: =AVERAGE(C21:N21) -> 0.2561291103 | R21: Tax Adjustments | S21: Totals
R22: 2025 Tax | S22: =SUM(B13:M13) -> 2816.02
A23: Monthly Profit | B23: =B3-B17 -> 50351.58083 | C23: 53266.50083 | D23: 42349.95583 | E23: 52518.33583 | F23: 51132.53583 | G23: 58454.37583 | H23: 56963.56583 | I23: 66639.46583 | J23: 63868.60583 | K23: 68137.85583 | L23: 62716.34583 | M23: 56494.48583 | N23: 21440.29667 | O23: =AVERAGE(B23:M23) -> 56907.80083 | R23: 2026 Tax | S23: =27156.83*2 -> 54313.66
R24: Difference | S24: =S23-S22 -> 51497.64
R25: Normalized | S25: =S24/12 -> 4291.47
R27: Debt Quotes - Income Breakdown T6
A28: Rolling 12 | B28: Totals | C28: Monthly Ave | D28: Annualized | R28: Feature | S28: Option 1 | T28: Option 2 | U28: Option 3
A29: Total Income (Dec '24 - Nov '25) | B29: =SUM(C3:N3) -> 859995.88 | C29: =B29/12 -> 71666.32333 | D29: =C29*12 -> 859995.88 | R29: Purchase Price | S29: 10450000 | T29: =S29 -> 10450000 | U29: =T29 -> 10450000
A30: Total Exp | B30: =SUM(C17:N17) -> 166420.2925 | C30: =B30/12 -> 13868.35771 | D30: =C30*12 -> 166420.2925 | R30: Down Payment - 35% | S30: =S29*0.35 -> 3657500 | T30: =T29*0.35 -> 3657500 | U30: 3657500
A31: Total Exp + Tax Adjustment | B31: =B30+S24 -> 217917.9325 | C31: =B31/12 -> 18159.82771 | D31: 217917.9325 | R31: Loan Amount | S31: =S29-S30 -> 6792500 | T31: =T29-T30 -> 6792500 | U31: 6792500
A32: Adjusted Exp Ratio | B32: =B31/B29 -> 0.2533941587 | C32: =B32 -> 0.2533941587 | D32: =D31/D29 -> 0.2533941587 | R32: Loan Term | S32: 5 | T32: 7 | U32: 10
A33: Total Profit | B33: =B29-B31 -> 642077.9475 | C33: =B33/12 -> 53506.49563 | D33: =D29-D31 -> 642077.9475 | R33: Annual Debt Service | S33: =27423*12 -> 329076 | T33: =28497*12 -> 341964 | U33: =29067*12 -> 348804
R34: Prepayment | S34: 4.5yr | T34: 6.5yr | U34: 9.5yr
R35: Interest Only | S35: 2 | T35: 3 | U35: 5
A36: Rolling 6 | B36: Totals | C36: Monthly Ave | D36: Annualized | R36: Interest Rate | S36: 0.0485 | T36: 0.0509 | U36: 0.0534
A37: Total Income (Dec '24 - Nov '25) | B37: =SUM(I3:N3) -> 458469.74 | C37: =B37/6 -> 76411.62333 | D37: =C37*12 -> 916939.48 | E37: =D37*0.11 -> 100863.3428 | R37: Recourse | S37: Non-Recourse | T37: Non-Recourse | U37: Non-Recourse
A38: Total Exp | B38: =SUM(I17:N17) -> 79579.4225 | C38: =B38/6 -> 13263.23708 | D38: =C38*12 -> 159158.845 | R38: Application Fee | S38: 15292 | T38: 15225 | U38: 15038
A39: Total Exp + Tax Adjustment | B39: =B38+(S25*6) -> 105328.2425 | C39: =B39/6 -> 17554.70708 | D39: 210656.485 | R39: Lender Origination | S39: 0.01 | T39: 0.01 | U39: 0.01
A40: Average Exp Ratio | B40: =B39/B37 -> 0.229738701 | C40: =B40 -> 0.229738701 | D40: =D39/D37 -> 0.229738701 | R40: Debt Placement Fee | S40: 0.01 | T40: 0.01 | U40: 0.01
A41: Total Profit | B41: =B37-B39 -> 353141.4975 | C41: =B41/6 -> 58856.91625 | D41: =D37-D39 -> 706282.995
R42: Total Income | S42: =D37 -> 916939.48 | T42: =S42 -> 916939.48 | U42: =T42 -> 916939.48
R43: Operating Expenses | S43: =D39 -> 210656.485 | T43: =S43 -> 210656.485 | U43: =T43 -> 210656.485
A44: Rolling 3 | B44: Totals | C44: Monthly Ave | D44: Annualized | R44: Debt Service | S44: =S33 -> 329076 | T44: =T33 -> 341964 | U44: 348804
A45: Total Income (Dec '24 - Nov '25) | B45: =SUM(L3:N3) -> 219168.84 | C45: =B45/3 -> 73056.28 | D45: =C45*12 -> 876675.36 | R45: Net Owner Income | S45: =S42-S43-S44 -> 377206.995 | T45: =T42-T43-T44 -> 364318.995 | U45: =U42-U43-U44 -> 357478.995
A46: Total Exp | B46: =SUM(L17:N17) -> 38924.45 | C46: =B46/3 -> 12974.81667 | D46: =C46*12 -> 155697.8 | R46: ROE | S46: =S45/S30 -> 0.1031324662 | T46: =T45/T30 -> 0.09960874778 | U46: =U45/U30 -> 0.09773861791
A47: Total Exp + Tax Adjustment | B47: =B46+(S25*3) -> 51798.86 | C47: =B47/3 -> 17266.28667 | D47: =C47*12 -> 207195.44
A48: Average Exp Ratio | B48: =B47/B45 -> 0.2363422647 | C48: =B48 -> 0.2363422647 | D48: =D47/D45 -> 0.2363422647
A49: Total Profit | B49: =B45-B47 -> 167369.98 | C49: =B49/3 -> 55789.99333 | D49: =D45-D47 -> 669479.92
A52: Occupancy | B52: 9/24 | C52: 10/24 | D52: 0.4583333333 | E52: 2025-12-24 | F52: 0.04 | G52: 0.08 | H52: 0.12 | I52: 0.16 | J52: 5/25 | K52: 6/25 | L52: 7/25 | M52: 8/25 | N52: 9/25 | O52: 10/25 | P52: 11/25 | Q52: 12/25 | R52: T-12 Average | S52: T-6 Average | T52: T-3 Average
A53: Total Units | B53: 45 | C53: 45 | D53: 45 | E53: 45 | F53: 45 | G53: 45 | H53: 45 | I53: 45 | J53: 45 | K53: 45 | L53: 45 | M53: 45 | N53: 45 | O53: 45 | P53: 45 | Q53: 45 | R53: =AVERAGE(B53:M53) -> 45 | S53: =AVERAGE(C53:N53) -> 45 | T53: =AVERAGE(K53:M53) -> 45
A54: Occupied Units | B54: =B56+B57+B58 -> 44 | C54: =C56+C57+C58 -> 40 | D54: 37 | E54: 39 | F54: 37 | G54: 35 | H54: 33 | I54: 37 | J54: 40 | K54: 44 | L54: =L56+L57+L58 -> 45 | M54: =M56+M57+M58 -> 45 | N54: 44 | O54: =O56+O57+O58 -> 45 | P54: 44 | Q54: 43 | R54: =AVERAGE(F54:Q54) -> 41 | S54: =AVERAGE(L54:Q54) -> 44.33333333 | T54: =AVERAGE(O54:Q54) -> 44
A55: Percent | B55: =B54/B53 -> 0.9777777778 | C55: 0.8888888889 | D55: 0.8222222222 | E55: 0.8666666667 | F55: 0.8222222222 | G55: 0.7777777778 | H55: 0.7333333333 | I55: 0.8222222222 | J55: 0.8888888889 | K55: 0.9777777778 | L55: =L54/L53 -> 1 | M55: =M54/M53 -> 1 | N55: =N54/N53 -> 0.9777777778 | O55: 1 | P55: 0.9777777778 | Q55: 0.9555555556 | R55: =AVERAGE(F55:Q55) -> 0.9111111111 | S55: =AVERAGE(L55:Q55) -> 0.9851851852 | T55: =AVERAGE(O55:Q55) -> 0.9777777778
A56: 2 Bedrooms | B56: 9 | C56: 8 | D56: 8 | E56: 9 | F56: 9 | G56: 9 | H56: 9 | I56: 9 | J56: 9 | K56: 9 | L56: 9 | M56: 9 | N56: 9 | O56: 9 | P56: 9 | Q56: 9 | R56: 9 | S56: 9 | T56: =AVERAGE(K56:M56) -> 9
A57: 1 Bedroom | B57: 26 | C57: 23 | D57: 21 | E57: 22 | F57: 20 | G57: 17 | H57: 15 | I57: 19 | J57: 22 | K57: 26 | L57: 27 | M57: 27 | N57: 27 | O57: 27 | P57: 27 | Q57: 27 | R57: 27 | S57: 27 | T57: =AVERAGE(K57:M57) -> 26.66666667
A58: Studio | B58: 9 | C58: 9 | D58: 8 | E58: 8 | F58: 8 | G58: 9 | H58: 9 | I58: 9 | J58: 9 | K58: 9 | L58: 9 | M58: 9 | N58: 9 | O58: 9 | P58: 9 | Q58: 9 | R58: 9 | S58: 9 | T58: =AVERAGE(K58:M58) -> 9

Sheet Rental Income Breakdown
C2: 2024-12-01 | D2: 2025-01-01 | E2: 2025-02-01 | F2: 2025-03-01 | G2: 2025-04-01 | H2: 2025-05-01 | I2: 2025-06-01 | J2: 2025-07-01 | K2: 2025-08-25 | L2: 2025-09-25 | M2: 2025-10-25 | N2: 2025-11-25 | P2: Current Occupancy | Q2: =N4/45 -> 0.9555555556
B3: Total Rental Income | C3: =Summary!B3 -> 64484.89 | D3: =Summary!C3 -> 67032.19 | E3: =Summary!D3 -> 58105.35 | F3: =Summary!E3 -> 70203.58 | G3: =Summary!F3 -> 64789.91 | H3: =Summary!G3 -> 72102.84 | I3: =Summary!H3 -> 69292.27 | J3: =Summary!I3 -> 79980.36 | K3: =Summary!J3 -> 77286.17 | L3: =Summary!K3 -> 82034.37 | M3: =Summary!L3 -> 74667.46 | N3: =Summary!M3 -> 68710.77
B4: Occupied Units | C4: 39 | D4: 36 | E4: 35 | F4: 36 | G4: 38 | H4: 42 | I4: 43 | J4: 44 | K4: 45 | L4: 45 | M4: 43 | N4: 43
P5: =P6+P7 -> 848690.16
B6: Rental Income (R&T) | C6: =C3-(SUM(C7:C11)) -> 56337.09 | D6: 58053.69 | E6: 49045.47 | F6: 62450.58 | G6: 57569.91 | H6: 64489.34 | I6: 61965.27 | J6: 72177.36 | K6: 69727.67 | L6: =L3-(SUM(L7:L11)) -> 74278.46 | M6: =M3-(SUM(M7:M11)) -> 66899.08 | N6: =N3-(SUM(N7:N11)) -> 61189.64 | P6: =SUM(C6:N6) -> 754183.56
B7: Electricity (cost reclaimation) | C7: =Summary!B7 -> 3330 | D7: =Summary!C7 -> 3845 | E7: =Summary!D7 -> 4457 | F7: =Summary!E7 -> 3832 | G7: =Summary!F7 -> 2829 | H7: =Summary!G7 -> 2727 | I7: =Summary!H7 -> 1869 | J7: =Summary!I7 -> 1991 | K7: =Summary!J7 -> 2105 | L7: =Summary!K7 -> 2227 | M7: =Summary!L7 -> 2085 | N7: =Summary!M7 -> 2495 | O7: =SUM(C7:N7) -> 33792 | P7: =SUM(O7:O11) -> 94506.6 | Q7: =P7/P5 -> 0.1113558333
B8: Water | C8: =C4*25 -> 975 | D8: 900 | E8: 875 | F8: 900 | G8: 950 | H8: 1050 | I8: 1075 | J8: 1100 | K8: 1125 | L8: =L4*25 -> 1125 | M8: =M4*25 -> 1075 | N8: 1075 | O8: 12225
B9: Internet | C9: =worksheet!C16 -> 1727 | D9: =worksheet!D16 -> 1668 | E9: =worksheet!E16 -> 1609 | F9: =worksheet!F16 -> 1491 | G9: =worksheet!G16 -> 1727 | H9: =worksheet!H16 -> 1845 | I9: =worksheet!I16 -> 1904 | J9: =worksheet!J16 -> 1845 | K9: =worksheet!K16 -> 1786 | L9: =worksheet!L16 -> 1845 | M9: =worksheet!M16 -> 1904 | N9: =worksheet!N16 -> 1963 | O9: 21314
B10: Monthly Pet Fee | C10: 1750 | D10: 1500 | E10: 1400 | F10: 1150 | G10: 1290 | H10: 1370 | I10: 1300 | J10: 1250 | K10: 1250 | L10: 1300 | M10: 1300 | N10: 1250 | O10: 16110
B11: Misc (App/Late & Cleaning Fees) | C11: =worksheet!C23 -> 365.8 | D11: =worksheet!D23 -> 1065.5 | E11: =worksheet!E23 -> 718.88 | F11: =worksheet!F23 -> 380 | G11: =worksheet!G23 -> 424 | H11: =worksheet!H23 -> 621.5 | I11: =worksheet!I23 -> 1179 | J11: =worksheet!J23 -> 1617 | K11: =worksheet!K23 -> 1292.5 | L11: =worksheet!L23 -> 1258.91 | M11: =worksheet!M23 -> 1404.38 | N11: =worksheet!N23 -> 738.13 | O11: 11065.6
B17: *Electricity is a pass through
B18: *Water Billed at $25/Unit (recommended to be increased to $35 to become revenue generator)
B19: *Internet cost is $30 for 100 mbps and $50 for 500mbps - billed at $59 for 100 mbps and $75 for 500 mbps (revenue genterator)

Sheet worksheet (hidden)
B3: Water Diff | C3: ='Rental Income Breakdown'!C8-Summary!B9 -> -118.795 | D3: ='Rental Income Breakdown'!D8-Summary!C9 -> -193.795 | E3: ='Rental Income Breakdown'!E8-Summary!D9 -> -219.03 | F3: ='Rental Income Breakdown'!F8-Summary!E9 -> -48.88 | G3: ='Rental Income Breakdown'!G8-Summary!F9 -> 10.99 | H3: ='Rental Income Breakdown'!H8-Summary!G9 -> 77.9 | I3: ='Rental Income Breakdown'!I8-Summary!H9 -> -55.34 | J3: ='Rental Income Breakdown'!J8-Summary!I9 -> -300.53 | K3: ='Rental Income Breakdown'!K8-Summary!J9 -> -268.2 | L3: ='Rental Income Breakdown'!L8-Summary!K9 -> -221.15 | M3: ='Rental Income Breakdown'!M8-Summary!L9 -> -334.48 | N3: ='Rental Income Breakdown'!N8-Summary!M9 -> -648.8
B4: Internet Diff | C4: ='Rental Income Breakdown'!C9-Summary!B6 -> 837 | D4: ='Rental Income Breakdown'!D9-Summary!C6 -> 808 | E4: ='Rental Income Breakdown'!E9-Summary!D6 -> 779 | F4: ='Rental Income Breakdown'!F9-Summary!E6 -> 721 | G4: ='Rental Income Breakdown'!G9-Summary!F6 -> 837 | H4: ='Rental Income Breakdown'!H9-Summary!G6 -> 895 | I4: ='Rental Income Breakdown'!I9-Summary!H6 -> 924 | J4: ='Rental Income Breakdown'!J9-Summary!I6 -> 895 | K4: ='Rental Income Breakdown'!K9-Summary!J6 -> 866 | L4: ='Rental Income Breakdown'!L9-Summary!K6 -> 521 | M4: ='Rental Income Breakdown'!M9-Summary!L6 -> 924 | N4: ='Rental Income Breakdown'!N9-Summary!M6 -> 953
A9: Internet | C9: Dec | D9: Jan | E9: Feb | F9: Mar | G9: Apr | H9: May | I9: June | J9: July | K9: Aug | L9: Sep | M9: Oct | N9: Nov
A10: Cost | C10: =Summary!B6 -> 890 | D10: =Summary!C6 -> 860 | E10: =Summary!D6 -> 830 | F10: =Summary!E6 -> 770 | G10: =Summary!F6 -> 890 | H10: =Summary!G6 -> 950 | I10: =Summary!H6 -> 980 | J10: =Summary!I6 -> 950 | K10: =Summary!J6 -> 920 | L10: =Summary!K6 -> 1324 | M10: =Summary!L6 -> 980 | N10: =Summary!M6 -> 1010
A11: Cost less 500mbps | C11: =(C10-50) -> 840 | D11: 810 | E11: 780 | F11: 720 | G11: 840 | H11: 900 | I11: 930 | J11: 900 | K11: 870 | L11: 1274 | M11: 930 | N11: =(N10-50) -> 960
A12: # 100 mpbs users | C12: =C11/30 -> 28 | D12: 27 | E12: 26 | F12: 24 | G12: 28 | H12: 30 | I12: 31 | J12: 30 | K12: 29 | L12: 30 | M12: 31 | N12: 32
A13: # 500 mbps users | C13: 1 | D13: 1 | E13: 1 | F13: 1 | G13: 1 | H13: 1 | I13: 1 | J13: 1 | K13: 1 | L13: 1 | M13: 1 | N13: 1
A14: Income for 100mbps | C14: =C12*59 -> 1652 | D14: 1593 | E14: 1534 | F14: 1416 | G14: 1652 | H14: 1770 | I14: 1829 | J14: 1770 | K14: 1711 | L14: 1770 | M14: =M12*59 -> 1829 | N14: 1888
A15: Income for 500 mbps | C15: =75*C13 -> 75 | D15: 75 | E15: 75 | F15: 75 | G15: 75 | H15: 75 | I15: 75 | J15: 75 | K15: 75 | L15: 75 | M15: =75*M13 -> 75 | N15: 75
B16: Total | C16: =C14+C15 -> 1727 | D16: 1668 | E16: 1609 | F16: 1491 | G16: 1727 | H16: 1845 | I16: 1904 | J16: 1845 | K16: 1786 | L16: 1845 | M16: =M14+M15 -> 1904 | N16: 1963
A19: Misc
A20: App | D20: 15.5 | E20: 46.5 | F20: 155 | G20: 124 | H20: 46.5 | I20: 79 | J20: 17 | K20: 32.5 | L20: 46.5 | M20: 15.5 | N20: 15.5
A21: Late | C21: 365.8 | D21: 150 | E21: 375 | F21: 225 | G21: 225 | H21: 575 | I21: 600 | J21: 300 | K21: 660 | L21: 596.12 | M21: 488.88 | N21: 722.63
A22: Cleaning | C22: 0 | D22: 900 | E22: 297.38 | F22: 0 | G22: 75 | H22: 0 | I22: 500 | J22: 1300 | K22: 600 | L22: 616.29 | M22: 900 | N22: 0
A23: Total | C23: =SUM(C20:C22) -> 365.8 | D23: 1065.5 | E23: 718.88 | F23: 380 | G23: 424 | H23: 621.5 | I23: 1179 | J23: 1617 | K23: 1292.5 | L23: 1258.91 | M23: 1404.38 | N23: 738.13
C30: marketing | D30: annual fire | E30: supplies | F30: lon exp
B31: dec | F31: 345.15
B32: jan | F32: 155.03
B33: feb
B34: march
B35: april
B36: may
A37: lump pmt | B37: june | C37: 1136.96 | E37: 2201.99
B38: july
B39: aug
B40: sept
B41: oct | D41: 2130
B42: nov | D42: 900 | F42: 1938.08
B43: Total | C43: =SUM(C31:C42) -> 1136.96 | D43: =SUM(D31:D42) -> 3030 | E43: =SUM(E31:E42) -> 2201.99 | F43: =SUM(F31:F42) -> 2438.26
A44: Normalized to Monthly | C44: =C43/12 -> 94.74666667 | D44: =D43/12 -> 252.5 | E44: =E43/12 -> 183.4991667 | F44: =F43/12 -> 203.1883333
E45: =E44+F44 -> 386.6875

Sheet November (hidden)
A1: Beginning Balance | B1: =[1]October!B42 -> 54824.44
J2: Income
A3: Income | D3: Total Inc | E3: =SUM(B4:B8) -> 68710.77 | J3: Rent
A4: Man Dep | B4: 1931.31 | J4: Pet
A5: FHS | B5: 340.58 | J5: Late Fee
A6: Doorloop | B6: 66438.88
A7: Deposit Reconciliation | J7: Water
J8: Electric
J9: Internet
A10: Expenses | D10: Total Exp | E10: =SUM(B11:B30) -> -48237.64 | J10: Total
A11: Admin
A12: Debt | R12: Deposits | S12: FHS | T12: Man
A13: Loan PMT | B13: -35301.79 | R13: 902.5
S14: 1350
A15: Utilities | R15: 1350
A16: Internet | B16: -1010 | L16: water | M16: 446.99 | S16: 1350
A17: Electricity | B17: -2495 | C17: 21st | M17: 405.83 | R17: 5510
A18: Waste Management | B18: -790.88 | M18: 525.45 | T18: 1740.09
A19: Water | B19: -1723.8 | C19: 25th | S19: 1350
S20: 119.23
A21: Prop Management
A22: Lon Salary Feb | B22: -4076.09 | C22: unpaid time off--reviewed with Lon
A23: Lon Exp | B23: -1938.08 | C23: approved expenses
L24: 20,000 transferred to MWest on 10/17 for escrow deposit on Biggers Lane
A25: MISC | L25: To be paid back
A26: Insurance
A27: Fire inspection | B27: -900
A28: deposit return
A29: WestEntry Cleaning | B29: 0
A30: Checkbook 1o/DL charge | B30: -2
A32: Carry Over | B32: =SUM(B1:B30) -> 75297.57
A34: Expenses less Loan PMT | B34: =E10-(B13) -> -12935.85 | D34: Profit | E34: =E3+E10 -> 20473.13
A35: Expenses Ratio | B35: =ABS(B34)/E3 -> 0.1882652458
A37: Add in
A40: To be Reconciled Carryover | B40: =B32+B38 -> 75297.57

Sheet October (hidden)
A1: Beginning Balance | B1: =[1]September!B32 -> 121059.85
J2: Income
A3: Income | D3: Total Inc | E3: =SUM(B4:B8) -> 74667.46 | J3: Rent
A4: Man Dep | B4: 4868.17 | J4: Pet
A5: FHS | J5: Late Fee
A6: Doorloop | B6: 69799.29
A7: Deposit Reconciliation
J8: Water
J9: Electric
A10: Expenses | D10: Total Exp | E10: =SUM(B11:B31) -> -49843.03 | J10: Internet
A11: Admin | J11: Total
A12: Debt
A13: Loan PMT | B13: -35301.79 | R13: Deposits | S13: FHS | T13: Man
R14: 902.5
A15: Utilities | S15: 1350
A16: Internet | B16: -980 | R16: 1350
A17: Electricity | B17: -2085 | C17: 21st | L17: water | M17: 446.99 | S17: 1350
A18: Waste Management | B18: -628.85 | M18: 405.83 | R18: 5510
A19: Water | B19: -1409.48 | C19: 25th | M19: 525.45 | T19: 1740.09
S20: 1350
A21: Prop Management | S21: 119.23
A22: Lon Salary Feb | B22: -4727.27 | C22: Kenneth covered 9/11-13 and 9/27-30 (7 days)
A23: Lon Exp | C23: approved expenses
A25: MISC
A26: Insurance | L26: 20,000 transferred to MWest on 10/17 for escrow deposit on Biggers Lane
A27: Fire inspection | B27: -2205
A28: deposit return | L28: To be paid back
A29: WestEntry Cleaning | B29: -2500
A30: Banking charge | B30: -2.64
A31: Checkbook 1o/DL charge | B31: -3
A33: Carry Over | B33: =SUM(B1:B31) -> 145884.28
A35: Expenses less Loan PMT | B35: =E10-(B13) -> -14541.24 | D35: Profit | E35: =E3+E10 -> 24824.43
A36: Expenses Ratio | B36: =ABS(B35)/E3 -> 0.1947466808
A38: Add in
A39: Investor Distribution | B39: -72847.87
A40: MWest Distribution | B40: -15480.17
B41: -2731.8
A42: To be Reconciled Carryover | B42: =B33+B39+B40+B41 -> 54824.44

Sheet September (hidden)
A1: Beginning Balance | B1: =[1]August!B38 -> 91097.49 | H1: last audit | W1: 9.11.25
J2: Income
A3: Income | D3: Total Inc | E3: =SUM(B4:B7) -> 82034.37 | J3: Rent
A4: Man Dep | B4: 5436.26 | J4: Pet | N4: Inc/Unit
A5: FHS | B5: 4142.88 | J5: Late Fee | N5: =K10/41 -> 0
A6: Doorloop | B6: 72455.23 | AD6: 1383.38
J7: Water | N7: Exp/Unit | AD7: 1370.07
J8: Electric | N8: =(35*41)+1600 -> 3035 | AD8: 1389.43
J9: Internet | N9: =N8/41 -> 74.02439024 | AD9: =SUM(AD6:AD8) -> 4142.88
A10: Expenses | D10: Total Exp | E10: =SUM(B11:B30) -> -52072.01 | J10: Total
A11: Admin | N11: =N5-N9 -> -74.02439024
A12: Debt | R12: Deposits | S12: FHS | T12: Man
A13: Loan PMT | B13: -35301.79 | R13: 902.5
S14: 1350
A15: Utilities | L15: Escrow | M15: 28000 | R15: 1350 | AA15: West Entry cleaning of $2975 was reimbursed by FHS on 10/6
A16: Internet | B16: -1324 | L16: Landscaping | M16: 25950 | S16: 1350 | AA16: Still have June-Aug outstanding.
A17: Electricity | B17: -2227 | C17: 21st | L17: Income | M17: =M15-M16 -> 2050 | R17: 5510
A18: Waste Management | B18: -628.85 | T18: 1740.09
A19: Water | B19: -1346.15 | C19: 25th | S19: 1350
S20: 119.23
A21: Prop Management
A22: Lon Salary Feb | B22: -6250 | C22: checkbook io
A23: Lon Exp
O24: 126.64
A25: MISC
A26: Insurance | B26: -3458.22 | C26: Reconciled 9.11 with Mwest for July-Sept insurance
A27: deposit return | B27: -1134 | C27: Zoe Jacobson
A28: WestEntry Cleaning
A29: Camera Repair | B29: -400
A30: Checkbook 1o/DL charge | B30: -2
A32: Carry Over | B32: =SUM(B1:B30) -> 121059.85 | H32: 105671.32 | J32: =B32-H32 -> 15388.53
A34: Expenses less Loan PMT | B34: =E10-(B13) -> -16770.22 | D34: Profit | E34: =E3+E10 -> 29962.36
A35: Expenses Ratio | B35: =ABS(B34)/E3 -> 0.2044291923
G39: Real Balance on 9/30 is | W39: 118084.85
G40: Difference of | W40: =B32-W39 -> 2975
G42: This is a was from the charge on 9/3 with the deposit from FHS on 10/6. Do not count 10/6s deposit as October income. (STR cleaning paid by FHS)

Sheet August (hidden)
A1: Beginning Balance | B1: =[1]July!B31 -> 70384.37
A3: Income | D3: Total Inc | E3: =SUM(B4:B8) -> 77286.17
A4: Man Dep | B4: 3242.73
A5: FHS | B5: 4138.7
A6: Doorloop | B6: 69904.74
A7: Vacasa Income
A10: Expenses | D10: Total Exp | E10: =SUM(B11:B29) -> -50599.84
A11: Admin
A12: Debt
A13: Loan PMT | B13: -35301.79
A15: Utilities
A16: Internet | B16: -920
A17: Electricity | B17: -2105 | C17: 21st
A18: Waste Management | B18: -628.85
A19: Water | B19: -1393.2 | C19: 25th
A21: Prop Management
A22: Lon Salary Feb | B22: -6250 | C22: checkbook io
A23: Lon Exp
A25: MISC
A26: Insurance
A27: deposit return | B27: -1499 | C27: Norris
A28: WestEntry Cleaning | B28: -2500 | C28: to be reconciled in Sept-FHS
A29: Checkbook 1o/DL charge | B29: -2
A31: Carry Over | B31: =SUM(B1:B29) -> 97070.7
A33: Expenses less Loan PMT | B33: =E10-(B13) -> -15298.05 | D33: Profit | E33: =E3+E10 -> 26686.33
A34: Expenses Ratio | B34: =ABS(B33)/E3 -> 0.1979403301
A36: Reconciliation Dep Acct | B36: -5973.21
A38: True Carryover | B38: =B31+B36 -> 91097.49

Sheet July (hidden)
A1: Beginning Balance | B1: =June!#REF! -> 
A3: Income | D3: Total Inc | E3: =SUM(B4:B8) -> 79980.36
A4: Man Dep | B4: 5016.99
A5: FHS | B5: 4067.99 | C5: PMT made 8.4
A6: Doorloop | B6: 70895.38
A7: Deposit Reconciliation
A10: Expenses | D10: Total Exp | E10: =SUM(B11:B29) -> -50326.74
A11: Admin
A12: Debt
A13: Loan PMT | B13: -35301.79
A15: Utilities
A16: Internet | B16: -950
A17: Electricity | B17: -1991
A18: Waste Management | B18: -628.85
A19: Water | B19: -1400.53
A21: Prop Management
A22: Lon Salary Feb | B22: -6250
A23: Lon Exp
A25: MISC
A26: Property Tax | B26: -1433.25
A27: deposit return | B27: -368.32
A28: WestEntry Cleaning | B28: -2000
A29: Checkbook 1o/DL charge | B29: -3
A32: Expenses less Loan PMT | B32: =E10-(B13) -> -15024.95 | D32: Profit | E32: =E3+E10 -> 29653.62
A33: Expenses Ratio | B33: =ABS(B32)/E3 -> 0.1878579941

Sheet June (hidden)
A1: Beginning Balance | B1: =May!B31 -> 40497.26
A3: Income | D3: Total Inc | E3: =SUM(B4:B8) -> 69292.27
A4: Man Dep | B4: 3868.87
A5: FHS | B5: 4040.95
A6: Doorloop | B6: 61382.45
A7: Mwest Reconciliation
A10: Expenses | D10: Total Exp | E10: =SUM(B11:B29) -> -49449.38
A11: Admin
A12: Debt
A13: Loan PMT | B13: -35301.79
A15: Utilities
A16: Internet | B16: -980
A17: Electricity | B17: -1869
A18: Waste Management | B18: -628.85
A19: Water | B19: -1130.34
A21: Prop Management
A22: Lon Salary Feb | B22: -5600
A23: Lon Exp
A25: MISC
A26: Marketing (last 6 months) | B26: -1136.96
A27: deposit return | B27: -2273.84
A28: WestEntry Cleaning | B28: -524.25
A29: Checkbook 1o/DL charge | B29: -4.35
A31: Carry Over | B31: =SUM(B1:B29) -> 60340.15
A33: Expenses less Loan PMT | B33: =E10-(B13) -> -14147.59 | D33: Profit | E33: =E3+E10 -> 19842.89
A34: Expenses Ratio | B34: =ABS(B33)/E3 -> 0.2041727021

Sheet May (hidden)
A1: Beginning Balance | B1: =Apr!B29 -> 16543.26
A3: Income | D3: Total Inc | E3: =SUM(B4:B7) -> 72102.84
A4: Man Dep | B4: 5337.21
A5: FHS | B5: 4092.01
A6: Doorloop | B6: 62673.62
A7: Deposit Reconciliation
A8: Reserve Balance PMT
A10: Expenses | D10: Total Exp | E10: =SUM(B11:B29) -> -48148.84
A11: Admin
A12: Debt
A13: Loan PMT | B13: -35301.79
A15: Utilities
A16: Internet | B16: -950 | J16: April | K16: May
A17: Electricity | B17: -2727 | J17: 1359.64 | K17: 1356.72
A18: Waste Management | B18: -628.85 | J18: 1372.71 | K18: 1364.39
A19: Water | B19: -972.1 | J19: 1379.66 | K19: 1370.9
J20: =SUM(J17:J19) -> 4112.01 | K20: =SUM(K17:K19) -> 4092.01
A21: Prop Management
A22: Lon Salary Feb | B22: -6250
A23: Lon Exp
A25: MISC
A26: Insurance
A27: deposit return | B27: -1318.1
A28: WestEntry Cleaning | B28: 0
A29: Checkbook 1o/DL charge | B29: -1
A31: Carry Over | B31: =SUM(B1:B29) -> 40497.26
A33: Expenses less Loan PMT | B33: =E10-(B13) -> -12847.05 | D33: Profit | E33: =E3+E10 -> 23954 | K33: =L33 -> 0
A34: Expenses Ratio | B34: =ABS(B33)/E3 -> 0.1781767542

Sheet Apr (hidden)
A1: Income | D1: Total Inc | E1: =SUM(B2:B6) -> 64789.91
A2: Man Dep | B2: 4784.63
A3: FHS | B3: 4112.01
A4: Doorloop | B4: 55893.27
A5: Deposit Reconciliation
A8: Expenses | D8: Total Exp | E8: =SUM(B9:B27) -> -48246.65
A9: Admin
A10: Debt
A11: Loan PMT | B11: -35301.79
A13: Utilities
A14: Internet | B14: -890 | J14: April | K14: May
A15: Electricity | B15: -2829 | J15: 1359.64 | K15: 1356.72
A16: Waste Management | B16: -628.85 | J16: 1372.71 | K16: 1364.39
A17: Water | B17: -939.01 | J17: 1379.66 | K17: 1370.9
J18: =SUM(J15:J17) -> 4112.01 | K18: =SUM(K15:K17) -> 4092.01
A19: Prop Management
A20: Lon Salary Feb | B20: -6250
A21: Lon Exp
A23: MISC
A24: Insurance
A25: deposit return | B25: -1405
A26: WestEntry Cleaning | B26: 0
A27: Checkbook 1o/DL charge | B27: -3
A29: Carry Over | B29: =SUM(B1:B27) -> 16543.26
A31: Expenses less Loan PMT | B31: =E8-(B11) -> -12944.86 | D31: Profit | E31: =E1+E8 -> 16543.26
A32: Expenses Ratio | B32: =ABS(B31)/E1 -> 0.1997974685

Sheet March (hidden)
A1: Income | D1: Total Inc | E1: =SUM(B2:B6) -> 70203.58 | J1: Rent
A2: Man Dep | B2: 3961.34 | J2: Pet
A3: FHS | B3: 4179.54 | J3: Late Fee
A4: Doorloop | B4: 62062.7
A5: Deposit Reconciliation
J6: Water
J7: Electric
A8: Expenses | D8: Total Exp | E8: =SUM(B9:B28) -> -55965.85 | J8: Internet
A9: Admin | J9: Total
A10: Debt
A11: Loan PMT | B11: -35301.79 | R11: Deposits | S11: FHS | T11: Man
R12: 902.5
A13: Utilities | S13: 1350
A14: Internet | B14: -770 | R14: 1350
A15: Electricity | B15: -3832 | C15: 21st | L15: water | M15: 379.16 | S15: 1350
A16: Waste Management | B16: -628.85 | M16: 316.55 | R16: 5510
A17: Water | B17: -948.88 | C17: 25th | M17: 301.97 | T17: 1740.09
M18: =SUM(M15:M17) -> 997.68 | S18: 1350
A19: Prop Management | S19: 119.23 | Y19: 296.95
A20: Lon Salary Feb | B20: -6250 | Y20: 309.13
A21: Lon Exp | Y21: 342.8
A23: MISC
A24: Insurance | B24: -5009.33
A25: Reconciliation with MWest
A26: Snow Plow & Clearing | B26: -3135
A27: WestEntry Cleaning | B27: -90
A28: Checkbook 1o/DL charge
A30: Carry Over | B30: =SUM(B1:B28) -> 14237.73
A32: Expenses less Loan PMT | B32: =E8-(B11) -> -20664.06 | D32: Profit | E32: =E1+E8 -> 14237.73
A33: Expenses Ratio | B33: =ABS(B32)/E1 -> 0.2943448183 | L33: 20,000 transferred to MWest on 10/17 for escrow deposit on Biggers Lane

Sheet Feb (hidden)
A1: Income | D1: Total Inc | E1: =SUM(B2:B5) -> 58105.35 | J1: Rent
A2: Man Dep | B2: 3913.18 | J2: Pet
A3: FHS | B3: 4180.81 | J3: Late Fee
A4: Doorloop | B4: 50011.36
J5: Water
J6: Electric
A7: Expenses | D7: Total Exp | E7: =SUM(B8:B26) -> -48938.67 | J7: Internet
A8: Admin | J8: Total
A9: Debt
A10: Loan PMT | B10: -35301.79 | R10: Deposits | S10: FHS | T10: Man
R11: 902.5
A12: Utilities | S12: 1350
A13: Internet | B13: -830 | R13: 1350
A14: Electricity | B14: -4457 | C14: 21st | L14: water | M14: 379.16 | S14: 1350
A15: Waste Management | B15: -628.85 | M15: 316.55 | R15: 5510
A16: Water | B16: -1094.03 | C16: 25th | M16: 301.97 | T16: 1740.09
M17: =SUM(M14:M16) -> 997.68 | S17: 1350
A18: Prop Management | S18: 119.23
A19: Lon Salary (Sept) | B19: -6250
A21: MISC
A22: Returned Deposits
A23: Reconciliation with MWest
A24: Snow Plow | B24: -375
A25: WestEntry Cleaning
A26: Checkbook 1o/DL charge | B26: -2
A29: Expenses less Loan PMT | B29: =E7-(B10) -> -13636.88 | D29: Profit | E29: =E1+E7 -> 9166.68
A30: Expenses Ratio | B30: =ABS(B29)/E1 -> 0.2346923304 | L30: 20,000 transferred to MWest on 10/17 for escrow deposit on Biggers Lane

Sheet Jan (hidden)
A1: Beginning Balance | B1: 167355.21
J2: Income
A3: Income | D3: Total Inc | E3: =SUM(B4:B7) -> 67032.19 | J3: Rent
A4: Man Dep | B4: 3800.1 | J4: Pet
A5: FHS | B5: 4157.79 | J5: Late Fee
A6: Doorloop | B6: 59074.3
J7: Water
J8: Electric
A9: Expenses | D9: Total Exp | E9: =SUM(B10:B28) -> -49077.86 | J9: Internet
A10: Admin | J10: Total
A11: Debt
A12: Loan PMT | B12: -35301.79 | R12: Deposits | S12: FHS | T12: Man
R13: 902.5
A14: Utilities | S14: 1350
A15: Internet | B15: -860 | R15: 1350
A16: Electricity | B16: -3845 | L16: water | M16: 379.16 | S16: 1350 | Y16: =SUM(B12:B28)+SUM(#REF!) -> 
A17: Waste Management | B17: -580.95 | M17: 316.55 | R17: 5510
A18: Water | B18: -2187.59 | M18: 301.97 | T18: 1740.09
M19: =SUM(M16:M18) -> 997.68 | S19: 1350
A20: Prop Management | S20: 119.23
A21: Lon Salary (Sept) | B21: -4687.5
A22: Lon Exp | B22: -155.03
A24: MISC
A25: Elite Fire Protection Inspection | B25: -900
A26: Snow Plow | B26: -375
A27: WestEntry Cleaning | B27: -180
A28: Checkbook 1o/DL charge | B28: -5
U30: =B31+'[2]Feb 25'!B33+March!B32 -> -48077.01
A31: Expenses less Loan PMT | B31: =E9-(B12) -> -13776.07 | D31: Profit | E31: =E3+E9 -> 17954.33 | U31: =ABS(U30/#REF!) -> 
A32: Expenses Ratio | B32: =ABS(B31)/E3 -> 0.2055142462 | L32: 20,000 transferred to MWest on 10/17 for escrow deposit on Biggers Lane

Sheet December (hidden)
A1: Income | D1: Total Inc | E1: =SUM(B2:B5) -> 64484.89 | J1: Rent
A2: Man Dep | B2: 3893.61 | J2: Pet
A3: FHS | B3: 4162.93 | J3: Late Fee
A4: Doorloop | B4: 56428.35
J5: Water
J6: Electric
A7: Expenses | D7: Total Exp | E7: =SUM(B8:B28) -> -46199.89 | J7: Internet
A8: Admin | J8: Total
A9: Debt
A10: Loan PMT | B10: -35301.79 | R10: Deposits | S10: FHS | T10: Man
R11: 902.5
A12: Utilities | S12: 1350
A13: Internet | B13: -890 | R13: 1350
A14: Electricity | B14: -3330 | C14: 21st | L14: water | M14: 379.16 | S14: 1350
A15: Waste Management | B15: -580.95 | M15: 316.55 | R15: 5510
A16: Water | B16: 0 | C16: 25th | M16: 301.97 | T16: 1740.09
M17: =SUM(M14:M16) -> 997.68 | S17: 1350
A18: Prop Management | S18: 119.23
A19: Lon Salary (Sept) | B19: -5600
A20: Lon Exp | B20: -345.15
A22: Cap Imp | L22: 20,000 transferred to MWest on 10/17 for escrow deposit on Biggers Lane
L23: To be paid back
A24: MISC
A25: Deposit Return | B25: 0
A26: Snow Plow | B26: -125
A27: WestEntry Cleaning | B27: 0
A28: Checkbook 1o/DL charge | B28: -27
D30: Profit | E30: =E1+E7 -> 18285
A33: Expenses less Loan PMT | B33: =E7-(B10+B25) -> -10898.1
A34: Expenses Ratio | B34: =ABS(B33)/E1 -> 0.1690023818
